Workbook

Sheet Formblatt CO2-Bonus
A4: Für den Einsatz nachwachsender, Kohlenstoff speichernder Baustoffe aus nachhaltiger Bewirtschaftung
A5: Status:
A6: Formblatt zur Berechnung der kg nawaros/m² Wohnfläche
A7: Die gelb hinterlegten Felder sind auszufüllen.
A9: Wohnfläche [m²]:
A11: Anmerkung: Ist das verbaute Material nicht in der Liste vorhanden, muss dieses dem nächstliegenden Datensatz (z.B. Material mit ähnlicher Dichte oder ähnlichem Bauprodukt) zugeordnet werden.
C12: Verbautes Volumen Entsprechend beiliegender Rechnung 1) [m³] | E12: Dichte, inkl. Holzfeuchte 2) [kg/m³] (lutro) | F12: Verbaute Masse (lutro) 1) [kg] | G12: Verbaute Holzmasse (atro + ohne Zusatzstoffe) [kg] | H12: Zur Information: Im Baustoff gebundene Menge CO2 3) [kg CO2] | I12: % Zusatzstoffe/Bindemittel | J12: % Holzfeuchte | K12: Kohlenstoff-gehalt [kgC/m³] | L12: Kohlenstoff-gehalt [kg C] | M12: gebundene Menge CO2 [kg CO2] | N12: Quelle Datensatz
A13: Material-Typ | B13: Material 1) | D13: zertifiziert nach FSC, PEFC oder Naturland 1)
A14: Vollholz in [m³] | B14: Nadelschnittholz | E14: 484.51 | F14: =IF(C14>0,C14*E14," ") ->  | G14: =IF(C14>0,(F14-(F14*I14/100))/(1+(J14/100))," ") ->  | H14: =IF(C14>0,G14*0.5*(44/12)," ") ->  | I14: 0 | J14: 12 | K14: 216.3 | L14: =K14*C14 -> 0 | M14: =L14*44/12 -> 0 | N14: thünen
B15: Konstruktionsvollholz | E15: 493 | F15: =IF(C15>0,C15*E15," ") ->  | G15: =IF(C15>0,(F15-(F15*I15/100))/(1+(J15/100))," ") ->  | H15: =IF(C15>0,G15*0.5*(44/12)," ") ->  | I15: =0.043+0.002+0.059 -> 0.104 | J15: 12 | K15: 219.83 | L15: =K15*C15 -> 0 | M15: =L15*44/12 -> 0 | N15: thünen
B16: Balkenschichtholz (Duo-Triobalken) | E16: 500.36 | F16: =IF(C16>0,C16*E16," ") ->  | G16: =IF(C16>0,(F16-(F16*I16/100))/(1+(J16/100))," ") ->  | I16: =0.655+0.031+0.309+0.005 -> 1 | J16: 12 | K16: 221.14 | L16: 0 | M16: 0 | N16: thünen
B17: Brettschichtholz - Standardformen | E17: 507.11 | I17: =1.622+0.058+0.057+0.0003 -> 1.7373 | J17: 12 | K17: 222.46 | L17: 0 | M17: 0 | N17: thünen
B18: Brettschichtholz - Sonderformen | E18: 508.43 | I18: =2.199+0.293+0.011 -> 2.503 | J18: 12 | K18: 221.3 | L18: 0 | M18: 0 | N18: thünen
B19: Brettsperrholz | E19: 489.41 | H19: =IF(C19>0,G19*0.5*(44/12)," ") ->  | I19: =0.814+0.691+0.039 -> 1.544 | J19: 12 | K19: 215.12 | L19: 0 | M19: =L19*44/12 -> 0 | N19: thünen
B20: Laubschnittholz | E20: 761.6 | H20: =IF(C20>0,G20*0.5*(44/12)," ") ->  | I20: 0 | J20: 12 | K20: 340 | L20: 0 | M20: 0 | N20: thünen
A22: Holz- Werkstoffe in [m³] | B22: 3-und 5-Schichtholzplatten | E22: 510.45 | F22: =IF(C22>0,C22*E22," ") ->  | G22: =IF(C22>0,(F22-(F22*I22/100))/(1+(J22/100))," ") ->  | H22: =IF(C22>0,G22*0.5*(44/12)," ") ->  | I22: 3.486 | J22: 12 | K22: 219.94 | L22: =K22*C22 -> 0 | M22: =L22*44/12 -> 0 | N22: thünen
B23: Sperrholz | E23: 823.93 | F23: =IF(C23>0,C23*E23," ") ->  | G23: =IF(C23>0,(F23-(F23*I23/100))/(1+(J23/100))," ") ->  | H23: =IF(C23>0,G23*0.5*(44/12)," ") ->  | I23: 10.87 | J23: 8 | K23: 340 | L23: =K23*C23 -> 0 | M23: 0 | N23: thünen
B24: OSB | E24: 600 | G24: =IF(C24>0,(F24-(F24*I24/100))/(1+(J24/100))," ") ->  | I24: =3.52+1.61+1.89 -> 7.02 | J24: 5 | K24: 265.43 | L24: 0 | M24: 0 | N24: thünen
B25: Röhrenspanplatte | E25: 272 | G25: =IF(C25>0,(F25-(F25*I25/100))/(1+(J25/100))," ") ->  | I25: =7.405+0.125 -> 7.53 | J25: 7 | K25: 117.6 | L25: 0 | M25: 0 | N25: thünen
B26: Spanplatte, melaminbeschichtet | E26: 633.29 | I26: =6.84+1.372+0.001+0.311+0.234+0.082+1.452 -> 10.292 | J26: 7 | K26: 265.48 | L26: 0 | M26: 0 | N26: thünen
B27: Spanplatte, roh | E27: 633.31 | I27: =7.513+0.796+0.065+0.135+0.392+0.22+0.002+0.042 -> 9.165 | J27: 7 | K27: 268.83 | L27: 0 | M27: 0 | N27: thünen
B28: MDF | E28: 737.5 | I28: =12.961+0.631 -> 13.592 | J28: 8 | K28: 295.15 | L28: 0 | M28: 0 | N28: thünen
B29: HDF | E29: 849.92 | G29: =IF(C29>0,(F29-(F29*I29/100))/(1+(J29/100))," ") ->  | H29: =IF(C29>0,G29*0.5*(44/12)," ") ->  | I29: =13.33+0.66 -> 13.99 | J29: 9 | K29: 334.67 | L29: 0 | M29: 0 | N29: thünen
A31: Dämmstoffe in [m³] | B31: Holzwolleleichtbauplatten | E31: 360 | F31: =IF(C31>0,C31*E31," ") ->  | G31: =IF(C31>0,(F31-(F31*I31/100))/(1+(J31/100))," ") ->  | H31: =IF(C31>0,G31*0.5*(44/12)," ") ->  | I31: 5 | J31: 10 | L31: =K31*C31 -> 0 | M31: =L31*44/12 -> 0 | N31: thinkstep
B32: Holzfaserdämmplatte | E32: 151 | F32: =IF(C32>0,C32*E32," ") ->  | G32: =IF(C32>0,L32*2," ") ->  | H32: =IF(C32>0,G32*0.5*(44/12)," ") ->  | K32: 64.64 | L32: =K32*C32 -> 0 | M32: =L32*44/12 -> 0 | N32: thünen
B33: Zellulose Faserplatten | E33: 80 | G33: =IF(C33>0,L33*2," ") ->  | H33: =IF(C33>0,G33*0.5*(44/12)," ") ->  | K33: 26 | L33: =K33*C33 -> 0 | M33: =L33*44/12 -> 0 | N33: Sphera Solutions GmbH
B34: Zellulose Einblas-Dämmstoff | E34: 45 | K34: 20.25 | L34: 0 | M34: 0 | N34: Sphera Solutions GmbH
B35: Hanf-/Flachsvlies | E35: 38 | K35: 16.15 | L35: 0 | M35: 0 | N35: Sphera Solutions GmbH
B36: Expandierter Kork | E36: 80 | G36: =IF(C36>0,(F36-(F36*I36/100))/(1+(J36/100))," ") ->  | H36: =IF(C36>0,G36*0.5*(44/12)," ") ->  | J36: 10 | L36: 0 | M36: 0 | N36: thinkstep
B37: Stroh | E37: 100 | G37: =IF(C37>0,(F37-(F37*I37/100))/(1+(J37/100))," ") ->  | H37: =IF(C37>0,G37*0.5*(44/12)," ") ->  | J37: 10 | L37: 0 | M37: =L37*44/12 -> 0 | N37: FASBA e.V.
A39: Vollholz: | E39: Verbaute kg nawaros /m² WF: | H39: =IF(C9>0,SUM(G14:G20,G22:G29,G31:G37)/C9,0) -> 0
A40: Nadelschnittholz | B40: Datensatz: 3.1.01 Nadelschnittholz - getrocknet (Durchschnitt DE)
A41: Konstruktionsvollholz | B41: Datensatz: 3.1.02 Konstruktionsvollholz (Durchschnitt DE)
A42: Balkenschichtholz (Duo-Triobalken) | B42: Datensatz: 3.1.03 Balkenschichtholz (Durchschnitt DE) | E42: Verbaute kg nawaros: | H42: =H39*C9 -> 0
A43: Brettschichtholz - Sonderformen | B43: Datensatz: 3.1.04 Brettschichtholz - Sonderformen (Durchschnitt DE)
A44: Brettschichtholz - Standardformen | B44: Datensatz: 3.1.04 Brettschichtholz - Standardformen (Durchschnitt DE)
A45: Brettsperrholz | B45: Datensatz: 3.1.05 Brettsperrholz (Durchschnitt DE) | E45: Speichermenge CO2 Gesamt: | H45: =SUM(H14:H20,H22:H29,H31:H37,0) -> 0
A46: Laubschnittholz | B46: Datensatz: 3.1.01 Laubschnittholz - getrocknet (Durchschnitt DE)
A47: Holzwerkstoffe:
A48: 3-und 5-Schichtholzplatten | B48: Datensatz: 3.2.01 3- und 5-Schicht Massivholzplatte (Durchschnitt DE)
A49: Sperrholz | B49: Datensatz: 3.2.02 Furniersperrholz (Durchschnitt DE) | E49: 1) Nachvollziehbare Nachweise sind dem Förderantrag beizulegen
A50: OSB | B50: Datensatz: 3.2.04 Oriented Strand Board (Durchschnitt DE)
A51: Röhrenspanplatte | B51: Datensatz: 3.2.06 Röhrenspanplatte (Durchschnitt DE) | E51: 2) Quelle: ökobau.dat Version: 2021-I vom 04.01.2021 und 2021-II vom 25.06.2021, Angaben inkl. Holzfeuchte (lutro)
A52: Spanplatte, melaminbeschichtet | B52: Datensatz: 3.2.06 Spanplatte - melaminbeschichtet (Durchschnitt DE)
A53: Spanplatte, roh | B53: Datensatz: 3.2.06 Spanplatte, roh (Durchschnitt DE)
A54: MDF | B54: Datensatz: 3.2.07 Mitteldichte Faserplatte (Durchschnitt DE) | E54: 3) Nachwachsende regenerative Baustoffe (Masse des Holzes, atro) bestehen zu 50% aus Kohlenstoff (C). Somit enthält 1 kg Baustoff (atro, ohne Zusatzstoffe) 0,5 kg Kohlenstoff (C). Diese Menge an Kohlenstoff (C) ist wiederum in 1,8 kg CO2 gebunden. Ergebnis: 1 kg an nachwachsendem regenerativen Baustoff bindet die Menge an Kohlenstoff, die in 1,8 kg vom Klimagas CO2 enthalten ist.
A55: HDF | B55: Datensatz: 3.2.07 Hochdichte Faserplatte (Durchschnitt DE)
A56: Dämmstoffe:
A57: Holzwolleleichtbauplatten | B57: Datensatz: 2.7.01 Holzwolle-Leichtbauplatte
A58: Holzfaserdämmplatte | B58: Datensatz: 2.10.01 Holzfaserdämmstoff Trockenverfahren (Durchschnitt DE)
A59: Zellulose Faserplatten | B59: Datensatz: 2.11.02 Zellulosefaserplatten
A60: Zellulose Einblas-Dämmstoff | B60: Datensatz: 2.11.01 Zellulosefaser Einblas-Dämmstoff
A61: Hanf-/Flachsvlies | B61: Datensatz: 2.13.01 Hanfvlies/ 2.12.01 Flachsvlies | E61: Erstellungsdatum Arbeitsblatt: 22.09.2021
A62: Expandierter Kork | B62: Datensatz: 2.9.01 Expandierter Kork
A63: Stroh | B63: Datensatz: 2.23.01 FASBA e.V. Baustroh; 100 kg/m³
A65: Für die Richtigkeit der Angaben:
A68: München, den __________________ | D68: München, den __________________
A73: ______________________________ | D73: ______________________________
A74: Unterschrift Bauherr*in | D74: Unterschrift Architekt*in
A82: Stempel Bauherr*in | D82: Stempel Architekt*in
